[Event "Titled Tuesday Blitz April 19 Late 2022"]
[White "Migot, Tangi"]
[Black "Bowden, Karl"]
[WhiteFideId "662445"]
[BlackFideId "400548"]
[WhiteElo "2538"]
[BlackElo "2351"]
[Result "1-0"]
[Round "07"]
[TimeControl "180+1"]
[Date "2022.04.19"]
[WhiteClock "0:00:49"]
[BlackClock "0:00:13"]

1. e4 {[%clk 0:03:00]}  e5 {[%clk 0:03:00]} 2. Nf3 {[%clk 0:03:01]}  d5 {[%clk 0:03:00]} 3. d4 {[%clk 0:02:58]}  dxe4 {[%clk 0:02:59]} 4. Nxe5 {[%clk 0:02:58]}  Bd6 {[%clk 0:03:00]} 5. Nc4 {[%clk 0:02:58]}  Nc6 {[%clk 0:02:59]} 6. Nc3 {[%clk 0:02:57]}  Bf5 {[%clk 0:02:59]} 7. Nxd6+ {[%clk 0:02:56]}  Qxd6 {[%clk 0:02:58]} 8. d5 {[%clk 0:02:54]}  Nce7 {[%clk 0:02:04]} 9. Bb5+ {[%clk 0:02:54]}  Kf8 {[%clk 0:01:58]} 10. Be3 {[%clk 0:02:46]}  Nf6 {[%clk 0:01:57]} 11. Bc4 {[%clk 0:02:33]}  a6 {[%clk 0:01:56]} 12. Bb3 {[%clk 0:02:31]}  Rd8 {[%clk 0:01:42]} 13. Qe2 {[%clk 0:02:18]}  h6 {[%clk 0:01:02]} 14. h3 {[%clk 0:02:18]}  Kg8 {[%clk 0:01:00]} 15. g4 {[%clk 0:02:15]}  Bg6 {[%clk 0:00:56]} 16. h4 {[%clk 0:02:09]}  h5 {[%clk 0:00:54]} 17. g5 {[%clk 0:02:07]}  Ng4 {[%clk 0:00:52]} 18. O-O-O {[%clk 0:02:06]}  Kh7 {[%clk 0:00:42]} 19. Kb1 {[%clk 0:02:03]}  Rhe8 {[%clk 0:00:35]} 20. Bc1 {[%clk 0:01:56]}  Nf5 {[%clk 0:00:26]} 21. Rh3 {[%clk 0:01:28]}  Qe5 {[%clk 0:00:25]} 22. Re1 {[%clk 0:01:14]}  Nd4 {[%clk 0:00:24]} 23. Qf1 {[%clk 0:01:12]}  Bf5 {[%clk 0:00:22]} 24. Rh1 {[%clk 0:01:08]}  Nxb3 {[%clk 0:00:18]} 25. axb3 {[%clk 0:01:07]}  c6 {[%clk 0:00:15]} 26. f3 {[%clk 0:01:04]}  Nh2 {[%clk 0:00:13]} 27. Rxh2 {[%clk 0:00:54]}  Qxh2 {[%clk 0:00:13]} 28. fxe4 {[%clk 0:00:54]}  Bg6 {[%clk 0:00:13]} 29. Bf4 {[%clk 0:00:50]}  cxd5 {[%clk 0:00:13]} 30. Bxh2 {[%clk 0:00:49]} 1-0


[Site "https://www.chess.com"]

[Event "Titled Tuesday Blitz April 19 Late 2022"]
[White "Mikhalsky, Vladimir"]
[Black "Solon, Nathan"]
[WhiteFideId "14144352"]
[BlackFideId "2017229"]
[WhiteElo "2301"]
[BlackElo "2565"]
[Result "1-0"]
[Round "07"]
[TimeControl "180+1"]
[Date "2022.04.19"]
[WhiteClock "0:01:51"]
[BlackClock "0:01:44"]

1. c4 {[%clk 0:02:59]}  e6 {[%clk 0:03:00]} 2. g3 {[%clk 0:02:58]}  d5 {[%clk 0:03:00]} 3. Bg2 {[%clk 0:02:59]}  Nf6 {[%clk 0:03:00]} 4. Nf3 {[%clk 0:02:59]}  dxc4 {[%clk 0:03:01]} 5. Qa4+ {[%clk 0:02:58]}  Bd7 {[%clk 0:03:01]} 6. Qxc4 {[%clk 0:02:58]}  c5 {[%clk 0:03:01]} 7. Ne5 {[%clk 0:02:55]}  Qc7 {[%clk 0:02:41]} 8. Nxd7 {[%clk 0:02:52]}  Nbxd7 {[%clk 0:02:42]} 9. O-O {[%clk 0:02:44]}  Be7 {[%clk 0:02:40]} 10. d4 {[%clk 0:02:42]}  Rc8 {[%clk 0:02:38]} 11. Nc3 {[%clk 0:02:28]}  O-O {[%clk 0:02:33]} 12. Bf4 {[%clk 0:02:23]}  Qb6 {[%clk 0:02:29]} 13. Na4 {[%clk 0:02:23]}  Qb4 {[%clk 0:01:53]} 14. Qxb4 {[%clk 0:02:21]}  cxb4 {[%clk 0:01:53]} 15. Bxb7 {[%clk 0:02:19]}  Rc2 {[%clk 0:01:54]} 16. e4 {[%clk 0:02:02]}  e5 {[%clk 0:01:44]} 17. dxe5 {[%clk 0:01:57]}  Ng4 {[%clk 0:01:44]} 18. Rac1 {[%clk 0:01:51]} 1-0


[Site "https://www.chess.com"]

[Event "Titled Tuesday Blitz April 19 Late 2022"]
[White "Mohammadian, Mohammad"]
[Black "Piliczewski, Bogusz"]
[WhiteFideId "12566055"]
[BlackFideId "1104144"]
[WhiteElo "1544"]
[BlackElo "1896"]
[Result "0-1"]
[Round "07"]
[TimeControl "180+1"]
[Date "2022.04.19"]
[WhiteClock "0:00:05"]
[BlackClock "0:01:01"]

1. e4 {[%clk 0:03:00]}  c6 {[%clk 0:02:59]} 2. d4 {[%clk 0:02:59]}  d5 {[%clk 0:02:57]} 3. Nd2 {[%clk 0:02:59]}  dxe4 {[%clk 0:02:57]} 4. Nxe4 {[%clk 0:02:58]}  Bf5 {[%clk 0:02:57]} 5. Ng3 {[%clk 0:02:57]}  Bg6 {[%clk 0:02:57]} 6. Nf3 {[%clk 0:02:57]}  Nd7 {[%clk 0:02:56]} 7. Bd3 {[%clk 0:02:57]}  Bxd3 {[%clk 0:02:55]} 8. Qxd3 {[%clk 0:02:56]}  e6 {[%clk 0:02:54]} 9. c4 {[%clk 0:02:56]}  Bb4+ {[%clk 0:02:52]} 10. Bd2 {[%clk 0:02:54]}  Bxd2+ {[%clk 0:02:51]} 11. Qxd2 {[%clk 0:02:51]}  Ngf6 {[%clk 0:02:48]} 12. O-O {[%clk 0:02:50]}  O-O {[%clk 0:02:47]} 13. Rfe1 {[%clk 0:02:50]}  Qc7 {[%clk 0:02:37]} 14. Rac1 {[%clk 0:02:46]}  Rad8 {[%clk 0:02:36]} 15. Qc3 {[%clk 0:02:40]}  b6 {[%clk 0:02:34]} 16. b4 {[%clk 0:02:39]}  Rfe8 {[%clk 0:02:30]} 17. d5 {[%clk 0:02:29]}  cxd5 {[%clk 0:02:27]} 18. cxd5 {[%clk 0:02:26]}  Qxc3 {[%clk 0:02:25]} 19. Rxc3 {[%clk 0:02:26]}  Nxd5 {[%clk 0:02:25]} 20. Rb3 {[%clk 0:02:16]}  Rc8 {[%clk 0:02:22]} 21. a4 {[%clk 0:02:13]}  Rc4 {[%clk 0:02:20]} 22. a5 {[%clk 0:02:10]}  Rxb4 {[%clk 0:02:15]} 23. Rxb4 {[%clk 0:02:07]}  Nxb4 {[%clk 0:02:16]} 24. axb6 {[%clk 0:02:07]}  axb6 {[%clk 0:02:15]} 25. Rb1 {[%clk 0:02:03]}  Nd5 {[%clk 0:02:15]} 26. Ne4 {[%clk 0:01:57]}  Rb8 {[%clk 0:02:13]} 27. Nd4 {[%clk 0:01:46]}  Ne5 {[%clk 0:02:07]} 28. Nb5 {[%clk 0:01:44]}  Nc4 {[%clk 0:01:57]} 29. Rc1 {[%clk 0:01:36]}  Ne5 {[%clk 0:01:50]} 30. Ned6 {[%clk 0:01:29]}  Kf8 {[%clk 0:01:45]} 31. Ra1 {[%clk 0:01:22]}  Nc6 {[%clk 0:01:40]} 32. Rc1 {[%clk 0:01:16]}  Ne5 {[%clk 0:01:31]} 33. Ra1 {[%clk 0:01:15]}  Nc6 {[%clk 0:01:26]} 34. Rc1 {[%clk 0:01:14]}  Na5 {[%clk 0:01:26]} 35. Ra1 {[%clk 0:01:06]}  Ke7 {[%clk 0:01:24]} 36. h3 {[%clk 0:01:01]}  Kd7 {[%clk 0:01:22]} 37. Rc1 {[%clk 0:00:57]}  f6 {[%clk 0:01:20]} 38. Kf1 {[%clk 0:00:55]}  Nb7 {[%clk 0:01:17]} 39. Nxb7 {[%clk 0:00:50]}  Rxb7 {[%clk 0:01:16]} 40. Ra1 {[%clk 0:00:47]}  e5 {[%clk 0:01:13]} 41. Ra8 {[%clk 0:00:46]}  Kc6 {[%clk 0:01:10]} 42. Na3 {[%clk 0:00:42]}  b5 {[%clk 0:01:09]} 43. Rc8+ {[%clk 0:00:32]}  Rc7 {[%clk 0:01:08]} 44. Rxc7+ {[%clk 0:00:31]}  Nxc7 {[%clk 0:01:07]} 45. Ke2 {[%clk 0:00:32]}  Kc5 {[%clk 0:01:07]} 46. Kd2 {[%clk 0:00:32]}  b4 {[%clk 0:01:06]} 47. Nc2 {[%clk 0:00:29]}  Nd5 {[%clk 0:01:06]} 48. Ne3 {[%clk 0:00:26]}  Nxe3 {[%clk 0:01:05]} 49. fxe3 {[%clk 0:00:26]}  Kc4 {[%clk 0:01:05]} 50. Kc2 {[%clk 0:00:26]}  b3+ {[%clk 0:01:05]} 51. Kb2 {[%clk 0:00:26]}  e4 {[%clk 0:01:04]} 52. g4 {[%clk 0:00:26]}  Kd3 {[%clk 0:01:03]} 53. h4 {[%clk 0:00:26]}  Kxe3 {[%clk 0:01:04]} 54. g5 {[%clk 0:00:26]}  Kf2 {[%clk 0:01:03]} 55. gxf6 {[%clk 0:00:17]}  gxf6 {[%clk 0:01:03]} 56. h5 {[%clk 0:00:17]}  e3 {[%clk 0:01:03]} 57. Kxb3 {[%clk 0:00:18]}  e2 {[%clk 0:01:03]} 58. Kc4 {[%clk 0:00:18]}  e1=Q {[%clk 0:01:03]} 59. Kd5 {[%clk 0:00:18]}  Qe5+ {[%clk 0:01:02]} 60. Kc6 {[%clk 0:00:17]}  Ke3 {[%clk 0:01:02]} 61. Kd7 {[%clk 0:00:05]}  Kd4 {[%clk 0:01:01]} 0-1


[Site "https://www.chess.com"]

[Event "Titled Tuesday Blitz April 19 Late 2022"]
[White "Musovic, Armin"]
[Black "Zhou, Qiyu"]
[WhiteFideId "939935"]
[BlackFideId "505161"]
[WhiteElo "2255"]
[BlackElo "1925"]
[Result "0-1"]
[Round "07"]
[TimeControl "180+1"]
[Date "2022.04.19"]
[WhiteClock "0:00:04"]
[BlackClock "0:00:05"]

1. a3 {[%clk 0:02:56]}  d5 {[%clk 0:02:58]} 2. Nc3 {[%clk 0:02:57]}  e5 {[%clk 0:02:58]} 3. d4 {[%clk 0:02:56]}  e4 {[%clk 0:02:56]} 4. Bf4 {[%clk 0:02:55]}  c6 {[%clk 0:02:55]} 5. f3 {[%clk 0:02:53]}  f5 {[%clk 0:02:55]} 6. Qd2 {[%clk 0:02:52]}  Nf6 {[%clk 0:02:53]} 7. Nh3 {[%clk 0:02:53]}  Bd6 {[%clk 0:02:51]} 8. e3 {[%clk 0:02:50]}  O-O {[%clk 0:02:50]} 9. Be2 {[%clk 0:02:49]}  Qe7 {[%clk 0:02:41]} 10. Rg1 {[%clk 0:02:37]}  Nbd7 {[%clk 0:02:28]} 11. Nd1 {[%clk 0:02:10]}  c5 {[%clk 0:02:16]} 12. c3 {[%clk 0:02:04]}  b6 {[%clk 0:01:57]} 13. Bxd6 {[%clk 0:01:51]}  Qxd6 {[%clk 0:01:58]} 14. f4 {[%clk 0:01:51]}  a5 {[%clk 0:01:53]} 15. Nhf2 {[%clk 0:01:42]}  Ba6 {[%clk 0:01:52]} 16. Bxa6 {[%clk 0:01:42]}  Rxa6 {[%clk 0:01:53]} 17. g4 {[%clk 0:01:42]}  fxg4 {[%clk 0:01:51]} 18. Nxg4 {[%clk 0:01:41]}  Nxg4 {[%clk 0:01:50]} 19. Rxg4 {[%clk 0:01:42]}  Nf6 {[%clk 0:01:51]} 20. Rg5 {[%clk 0:01:41]}  h6 {[%clk 0:01:47]} 21. Rg6 {[%clk 0:01:34]}  Qd7 {[%clk 0:01:39]} 22. Qg2 {[%clk 0:01:26]}  Kh7 {[%clk 0:01:38]} 23. Nf2 {[%clk 0:01:20]}  Ra7 {[%clk 0:01:31]} 24. O-O-O {[%clk 0:01:18]}  Qf5 {[%clk 0:01:26]} 25. Rg1 {[%clk 0:01:16]}  Rff7 {[%clk 0:01:18]} 26. Qg3 {[%clk 0:00:54]}  cxd4 {[%clk 0:01:06]} 27. cxd4 {[%clk 0:00:51]}  b5 {[%clk 0:01:03]} 28. Qh4 {[%clk 0:00:47]}  b4 {[%clk 0:00:52]} 29. a4 {[%clk 0:00:40]}  b3 {[%clk 0:00:48]} 30. Nd1 {[%clk 0:00:35]}  Qc8+ {[%clk 0:00:31]} 31. Nc3 {[%clk 0:00:34]}  Rac7 {[%clk 0:00:30]} 32. Qe1 {[%clk 0:00:22]}  Qd7 {[%clk 0:00:25]} 33. Kb1 {[%clk 0:00:21]}  Rc4 {[%clk 0:00:20]} 34. Nb5 {[%clk 0:00:16]}  Rxa4 {[%clk 0:00:19]} 35. Qg3 {[%clk 0:00:14]}  Nh5 {[%clk 0:00:14]} 36. Rxh6+ {[%clk 0:00:12]}  Kg8 {[%clk 0:00:05]} 37. Rxh5 {[%clk 0:00:05]}  Qxb5 {[%clk 0:00:04]} 38. Rd1 {[%clk 0:00:03]}  Qc4 {[%clk 0:00:03]} 39. Qf2 {[%clk 0:00:01]}  Rc7 {[%clk 0:00:02]} 40. Qd2 {[%clk 0:00:02]}  Qc2+ {[%clk 0:00:02]} 41. Qxc2 {[%clk 0:00:03]}  bxc2+ {[%clk 0:00:03]} 42. Kc1 {[%clk 0:00:03]}  Ra1+ {[%clk 0:00:03]} 43. Kd2 {[%clk 0:00:03]}  Rxd1+ {[%clk 0:00:04]} 44. Ke2 {[%clk 0:00:04]}  c1=Q {[%clk 0:00:05]} 45. Rh8+ {[%clk 0:00:04]}  Kxh8 {[%clk 0:00:05]} 0-1


[Site "https://www.chess.com"]

[Event "Titled Tuesday Blitz April 19 Late 2022"]
[White "Noboa Silva, Kevin"]
[Black "Kostiukov, Alexandr"]
[WhiteFideId "3618471"]
[BlackFideId "14108100"]
[WhiteElo "2172"]
[BlackElo "2202"]
[Result "1-0"]
[Round "07"]
[TimeControl "180+1"]
[Date "2022.04.19"]
[WhiteClock "0:00:03"]
[BlackClock "0:00:04"]

1. e4 {[%clk 0:02:59]}  c5 {[%clk 0:02:59]} 2. c3 {[%clk 0:02:59]}  g6 {[%clk 0:02:59]} 3. Nf3 {[%clk 0:02:58]}  Bg7 {[%clk 0:02:58]} 4. d4 {[%clk 0:02:58]}  cxd4 {[%clk 0:02:59]} 5. cxd4 {[%clk 0:02:59]}  d5 {[%clk 0:02:59]} 6. e5 {[%clk 0:03:00]}  Nc6 {[%clk 0:02:56]} 7. Bb5 {[%clk 0:02:59]}  Bg4 {[%clk 0:02:56]} 8. Bxc6+ {[%clk 0:02:58]}  bxc6 {[%clk 0:02:56]} 9. Nbd2 {[%clk 0:02:59]}  Nh6 {[%clk 0:02:55]} 10. O-O {[%clk 0:02:58]}  O-O {[%clk 0:02:52]} 11. h3 {[%clk 0:02:58]}  Bxf3 {[%clk 0:02:52]} 12. Nxf3 {[%clk 0:02:59]}  Nf5 {[%clk 0:02:51]} 13. Qa4 {[%clk 0:02:56]}  Qb6 {[%clk 0:02:50]} 14. b3 {[%clk 0:02:55]}  c5 {[%clk 0:02:37]} 15. dxc5 {[%clk 0:02:49]}  Qxc5 {[%clk 0:02:37]} 16. Ba3 {[%clk 0:02:49]}  Qc7 {[%clk 0:02:22]} 17. Rac1 {[%clk 0:02:47]}  Qb7 {[%clk 0:02:22]} 18. g4 {[%clk 0:02:11]}  d4 {[%clk 0:02:03]} 19. Qc6 {[%clk 0:02:10]}  Qxc6 {[%clk 0:01:56]} 20. Rxc6 {[%clk 0:02:11]}  Nh6 {[%clk 0:01:55]} 21. Bxe7 {[%clk 0:02:07]}  Rfe8 {[%clk 0:01:55]} 22. Bg5 {[%clk 0:02:04]}  f5 {[%clk 0:01:33]} 23. exf6 {[%clk 0:01:58]}  Bf8 {[%clk 0:01:23]} 24. Bxh6 {[%clk 0:01:57]}  Bxh6 {[%clk 0:01:22]} 25. g5 {[%clk 0:01:50]}  Bf8 {[%clk 0:01:19]} 26. Nxd4 {[%clk 0:01:50]}  Re5 {[%clk 0:01:15]} 27. f4 {[%clk 0:01:42]}  Rc5 {[%clk 0:01:10]} 28. Kg2 {[%clk 0:01:36]}  Re8 {[%clk 0:01:05]} 29. Rf2 {[%clk 0:01:30]}  Re4 {[%clk 0:01:03]} 30. f7+ {[%clk 0:00:48]}  Kxf7 {[%clk 0:00:53]} 31. Rf6+ {[%clk 0:00:47]}  Kg8 {[%clk 0:00:43]} 32. Ne6 {[%clk 0:00:43]}  Rf5 {[%clk 0:00:33]} 33. Rxf5 {[%clk 0:00:25]}  gxf5 {[%clk 0:00:33]} 34. Nxf8 {[%clk 0:00:25]}  Kxf8 {[%clk 0:00:34]} 35. Kf3 {[%clk 0:00:25]}  Kf7 {[%clk 0:00:30]} 36. Rc2 {[%clk 0:00:23]}  Re7 {[%clk 0:00:25]} 37. Rc6 {[%clk 0:00:20]}  Kg7 {[%clk 0:00:21]} 38. Rc5 {[%clk 0:00:18]}  Kg6 {[%clk 0:00:20]} 39. Rc6+ {[%clk 0:00:16]}  Kg7 {[%clk 0:00:20]} 40. Rd6 {[%clk 0:00:16]}  Rc7 {[%clk 0:00:19]} 41. Rd3 {[%clk 0:00:14]}  Rc2 {[%clk 0:00:18]} 42. a4 {[%clk 0:00:14]}  Rb2 {[%clk 0:00:17]} 43. h4 {[%clk 0:00:14]}  a5 {[%clk 0:00:15]} 44. Ke3 {[%clk 0:00:13]}  Kg6 {[%clk 0:00:14]} 45. Kd4 {[%clk 0:00:13]}  Kh5 {[%clk 0:00:14]} 46. Ke5 {[%clk 0:00:13]}  Kg4 {[%clk 0:00:13]} 47. Rd4 {[%clk 0:00:13]}  Re2+ {[%clk 0:00:13]} 48. Kf6 {[%clk 0:00:13]}  Re3 {[%clk 0:00:11]} 49. b4 {[%clk 0:00:12]}  axb4 {[%clk 0:00:11]} 50. Rxb4 {[%clk 0:00:13]}  Rc3 {[%clk 0:00:09]} 51. h5 {[%clk 0:00:11]}  Rc6+ {[%clk 0:00:08]} 52. Ke5 {[%clk 0:00:11]}  Rc5+ {[%clk 0:00:08]} 53. Kd6 {[%clk 0:00:11]}  Ra5 {[%clk 0:00:08]} 54. h6 {[%clk 0:00:06]}  Kh5 {[%clk 0:00:06]} 55. Ke6 {[%clk 0:00:04]}  Kg6 {[%clk 0:00:05]} 56. Rd4 {[%clk 0:00:03]}  Ra6+ {[%clk 0:00:05]} 57. Rd6 {[%clk 0:00:04]}  Rxa4 {[%clk 0:00:04]} 58. Ke5+ {[%clk 0:00:04]}  Kh5 {[%clk 0:00:05]} 59. Kxf5 {[%clk 0:00:03]}  Ra5+ {[%clk 0:00:05]} 60. Ke4 {[%clk 0:00:03]}  Kg4 {[%clk 0:00:04]} 61. Rf6 {[%clk 0:00:02]}  Ra4+ {[%clk 0:00:04]} 62. Ke5 {[%clk 0:00:03]}  Ra5+ {[%clk 0:00:05]} 63. Ke6 {[%clk 0:00:03]}  Ra6+ {[%clk 0:00:05]} 64. Ke7 {[%clk 0:00:04]}  Ra7+ {[%clk 0:00:05]} 65. Kf8 {[%clk 0:00:04]}  Kh5 {[%clk 0:00:05]} 66. Kg8 {[%clk 0:00:03]}  Rb7 {[%clk 0:00:04]} 67. Rf7 {[%clk 0:00:03]} 1-0


[Site "https://www.chess.com"]

[Event "Titled Tuesday Blitz April 19 Late 2022"]
[White "Omariev, Maksim"]
[Black "Novikova, Galina"]
[WhiteFideId "4193423"]
[BlackFideId "4157095"]
[WhiteElo "2499"]
[BlackElo "1863"]
[Result "1-0"]
[Round "07"]
[TimeControl "180+1"]
[Date "2022.04.19"]
[WhiteClock "0:00:03"]
[BlackClock "0:00:01"]

1. g4 {[%clk 0:03:00]}  d5 {[%clk 0:02:55]} 2. Bg2 {[%clk 0:03:01]}  Bxg4 {[%clk 0:02:50]} 3. c4 {[%clk 0:03:00]}  e6 {[%clk 0:02:35]} 4. Qb3 {[%clk 0:02:53]}  Nf6 {[%clk 0:02:16]} 5. cxd5 {[%clk 0:02:47]}  Nbd7 {[%clk 0:02:12]} 6. dxe6 {[%clk 0:02:39]}  Bxe6 {[%clk 0:02:13]} 7. Qxb7 {[%clk 0:02:39]}  Rb8 {[%clk 0:02:13]} 8. Qxa7 {[%clk 0:02:37]}  Bc5 {[%clk 0:02:11]} 9. Qa4 {[%clk 0:02:36]}  O-O {[%clk 0:02:11]} 10. Nf3 {[%clk 0:02:29]}  Rb4 {[%clk 0:02:08]} 11. Qc2 {[%clk 0:02:26]}  Rg4 {[%clk 0:01:43]} 12. Rg1 {[%clk 0:02:07]}  Bd5 {[%clk 0:01:11]} 13. Bh3 {[%clk 0:01:50]}  Bxf3 {[%clk 0:01:04]} 14. Bxg4 {[%clk 0:01:47]}  Bxg4 {[%clk 0:01:05]} 15. Nc3 {[%clk 0:01:39]}  Qe7 {[%clk 0:01:02]} 16. d3 {[%clk 0:01:32]}  Re8 {[%clk 0:00:55]} 17. Bg5 {[%clk 0:01:33]}  Bh5 {[%clk 0:00:51]} 18. O-O-O {[%clk 0:01:02]}  Bg6 {[%clk 0:00:48]} 19. Nd5 {[%clk 0:00:42]}  Qd6 {[%clk 0:00:44]} 20. Nxf6+ {[%clk 0:00:39]}  Nxf6 {[%clk 0:00:45]} 21. Bxf6 {[%clk 0:00:37]}  gxf6 {[%clk 0:00:45]} 22. e3 {[%clk 0:00:35]}  Ra8 {[%clk 0:00:39]} 23. Kb1 {[%clk 0:00:28]}  Rb8 {[%clk 0:00:30]} 24. Ka1 {[%clk 0:00:19]}  Bb6 {[%clk 0:00:23]} 25. Qc3 {[%clk 0:00:14]}  Ra8 {[%clk 0:00:15]} 26. Rc1 {[%clk 0:00:09]}  Qe6 {[%clk 0:00:12]} 27. Qc4 {[%clk 0:00:08]}  Qh3 {[%clk 0:00:10]} 28. Qf4 {[%clk 0:00:05]}  Qe6 {[%clk 0:00:08]} 29. Qc4 {[%clk 0:00:04]}  Qh3 {[%clk 0:00:08]} 30. d4 {[%clk 0:00:04]}  Qxh2 {[%clk 0:00:07]} 31. Qe2 {[%clk 0:00:04]}  Qd6 {[%clk 0:00:06]} 32. f4 {[%clk 0:00:03]}  Qd5 {[%clk 0:00:06]} 33. b3 {[%clk 0:00:03]}  Qxb3 {[%clk 0:00:05]} 34. f5 {[%clk 0:00:04]}  Qd5 {[%clk 0:00:03]} 35. fxg6 {[%clk 0:00:04]}  hxg6 {[%clk 0:00:03]} 36. Qc2 {[%clk 0:00:03]}  Ba5 {[%clk 0:00:03]} 37. Qc4 {[%clk 0:00:03]}  Qe5 {[%clk 0:00:01]} 38. dxe5 {[%clk 0:00:03]} 1-0


[Site "https://www.chess.com"]

[Event "Titled Tuesday Blitz April 19 Late 2022"]
[White "Petrovic, Aleksa"]
[Black "Gatterer, Florian"]
[WhiteFideId "967629"]
[BlackFideId "811688"]
[WhiteElo "2198"]
[BlackElo "2218"]
[Result "1-0"]
[Round "07"]
[TimeControl "180+1"]
[Date "2022.04.19"]
[WhiteClock "0:00:13"]
[BlackClock "0:00:03"]

1. d4 {[%clk 0:02:59]}  g6 {[%clk 0:02:53]} 2. c4 {[%clk 0:02:59]}  Bg7 {[%clk 0:02:50]} 3. e4 {[%clk 0:02:59]}  d6 {[%clk 0:02:49]} 4. Nc3 {[%clk 0:02:59]}  Nf6 {[%clk 0:02:49]} 5. Be2 {[%clk 0:02:59]}  O-O {[%clk 0:02:48]} 6. Bg5 {[%clk 0:02:59]}  c5 {[%clk 0:02:47]} 7. d5 {[%clk 0:02:58]}  h6 {[%clk 0:02:42]} 8. Bf4 {[%clk 0:02:58]}  a6 {[%clk 0:02:37]} 9. Qd2 {[%clk 0:02:57]}  Kh7 {[%clk 0:02:36]} 10. a4 {[%clk 0:02:54]}  Bg4 {[%clk 0:02:22]} 11. f3 {[%clk 0:02:53]}  Bc8 {[%clk 0:02:20]} 12. g4 {[%clk 0:02:49]}  Ng8 {[%clk 0:01:45]} 13. h4 {[%clk 0:02:49]}  f5 {[%clk 0:01:45]} 14. exf5 {[%clk 0:02:40]}  gxf5 {[%clk 0:01:45]} 15. g5 {[%clk 0:02:32]}  Bd4 {[%clk 0:01:35]} 16. Nh3 {[%clk 0:02:27]}  e5 {[%clk 0:01:35]} 17. dxe6 {[%clk 0:02:18]}  Bxe6 {[%clk 0:01:35]} 18. gxh6 {[%clk 0:02:08]}  Qxh4+ {[%clk 0:01:13]} 19. Kd1 {[%clk 0:02:07]}  Qf6 {[%clk 0:01:00]} 20. Ng5+ {[%clk 0:02:06]}  Kh8 {[%clk 0:00:59]} 21. h7 {[%clk 0:01:55]}  Ne7 {[%clk 0:00:58]} 22. Nxe6 {[%clk 0:01:48]}  Qxe6 {[%clk 0:00:57]} 23. Bh6 {[%clk 0:01:48]}  Rf7 {[%clk 0:00:47]} 24. Kc2 {[%clk 0:01:23]}  Nbc6 {[%clk 0:00:47]} 25. Rae1 {[%clk 0:01:03]}  Nb4+ {[%clk 0:00:45]} 26. Kb3 {[%clk 0:01:01]}  Nec6 {[%clk 0:00:34]} 27. Nd5 {[%clk 0:00:39]}  Nxd5 {[%clk 0:00:29]} 28. cxd5 {[%clk 0:00:40]}  Qxd5+ {[%clk 0:00:29]} 29. Bc4 {[%clk 0:00:39]}  Qxc4+ {[%clk 0:00:12]} 30. Kxc4 {[%clk 0:00:39]}  b5+ {[%clk 0:00:12]} 31. Kb3 {[%clk 0:00:35]}  bxa4+ {[%clk 0:00:10]} 32. Ka2 {[%clk 0:00:33]}  Rb8 {[%clk 0:00:09]} 33. Be3 {[%clk 0:00:23]}  Rfb7 {[%clk 0:00:06]} 34. Bxd4+ {[%clk 0:00:20]}  Nxd4 {[%clk 0:00:07]} 35. Qg2 {[%clk 0:00:20]}  a3 {[%clk 0:00:05]} 36. bxa3 {[%clk 0:00:16]}  Rb3 {[%clk 0:00:04]} 37. Reg1 {[%clk 0:00:15]}  Rxa3+ {[%clk 0:00:01]} 38. Kxa3 {[%clk 0:00:13]}  Nb5+ {[%clk 0:00:02]} 39. Ka2 {[%clk 0:00:13]}  Nc3+ {[%clk 0:00:02]} 40. Ka1 {[%clk 0:00:13]}  Rb1+ {[%clk 0:00:02]} 41. Rxb1 {[%clk 0:00:13]}  Nxb1 {[%clk 0:00:03]} 42. Qg8# {[%clk 0:00:13]} 1-0


[Site "https://www.chess.com"]

[Event "Titled Tuesday Blitz April 19 Late 2022"]
[White "Pinheiro, Iung Alicio de O."]
[Black "Babazada, Khazar"]
[WhiteFideId "2104350"]
[BlackFideId "13413554"]
[WhiteElo "2608"]
[BlackElo "2406"]
[Result "0-1"]
[Round "07"]
[TimeControl "180+1"]
[Date "2022.04.19"]
[WhiteClock "0:00:11"]
[BlackClock "0:00:27"]

1. c4 {[%clk 0:03:00]}  f5 {[%clk 0:03:00]} 2. g3 {[%clk 0:02:59]}  g6 {[%clk 0:03:00]} 3. Bg2 {[%clk 0:03:00]}  Bg7 {[%clk 0:03:01]} 4. Nc3 {[%clk 0:03:00]}  Nf6 {[%clk 0:03:01]} 5. d3 {[%clk 0:03:01]}  O-O {[%clk 0:02:57]} 6. e4 {[%clk 0:03:01]}  e5 {[%clk 0:02:56]} 7. Nge2 {[%clk 0:03:00]}  d6 {[%clk 0:02:57]} 8. O-O {[%clk 0:03:00]}  Nc6 {[%clk 0:02:57]} 9. Nd5 {[%clk 0:02:42]}  Ne7 {[%clk 0:02:53]} 10. h3 {[%clk 0:02:14]}  c6 {[%clk 0:02:44]} 11. Nxf6+ {[%clk 0:02:06]}  Bxf6 {[%clk 0:02:44]} 12. Bh6 {[%clk 0:02:06]}  Bg7 {[%clk 0:02:44]} 13. Qd2 {[%clk 0:02:01]}  Be6 {[%clk 0:02:32]} 14. Rac1 {[%clk 0:01:51]}  Qd7 {[%clk 0:02:21]} 15. Kh2 {[%clk 0:01:48]}  c5 {[%clk 0:02:07]} 16. Bxg7 {[%clk 0:01:44]}  Kxg7 {[%clk 0:02:08]} 17. f4 {[%clk 0:01:44]}  fxe4 {[%clk 0:02:05]} 18. dxe4 {[%clk 0:01:41]}  Nc6 {[%clk 0:02:05]} 19. b3 {[%clk 0:01:02]}  Nd4 {[%clk 0:02:03]} 20. Nc3 {[%clk 0:01:01]}  Rf7 {[%clk 0:01:59]} 21. Rf2 {[%clk 0:01:01]}  Raf8 {[%clk 0:01:57]} 22. Rcf1 {[%clk 0:01:01]}  Qe7 {[%clk 0:01:55]} 23. Nd1 {[%clk 0:00:53]}  exf4 {[%clk 0:01:44]} 24. Rxf4 {[%clk 0:00:51]}  Bd7 {[%clk 0:01:37]} 25. Ne3 {[%clk 0:00:49]}  Bc6 {[%clk 0:01:35]} 26. Qf2 {[%clk 0:00:47]}  Rxf4 {[%clk 0:01:35]} 27. gxf4 {[%clk 0:00:46]}  Bxe4 {[%clk 0:01:35]} 28. Re1 {[%clk 0:00:44]}  Bxg2 {[%clk 0:01:12]} 29. Nf5+ {[%clk 0:00:43]}  Nxf5 {[%clk 0:01:11]} 30. Rxe7+ {[%clk 0:00:43]}  Nxe7 {[%clk 0:01:12]} 31. Qxg2 {[%clk 0:00:41]}  Nc6 {[%clk 0:00:57]} 32. Qd5 {[%clk 0:00:37]}  Rf6 {[%clk 0:00:52]} 33. Kg3 {[%clk 0:00:37]}  Kf8 {[%clk 0:00:39]} 34. a3 {[%clk 0:00:35]}  a5 {[%clk 0:00:37]} 35. h4 {[%clk 0:00:34]}  h5 {[%clk 0:00:36]} 36. Qe4 {[%clk 0:00:29]}  Kf7 {[%clk 0:00:34]} 37. Qd5+ {[%clk 0:00:28]}  Kg7 {[%clk 0:00:33]} 38. Qd2 {[%clk 0:00:28]}  Nd4 {[%clk 0:00:29]} 39. b4 {[%clk 0:00:27]}  axb4 {[%clk 0:00:25]} 40. axb4 {[%clk 0:00:28]}  Re6 {[%clk 0:00:25]} 41. bxc5 {[%clk 0:00:25]}  dxc5 {[%clk 0:00:26]} 42. Qb2 {[%clk 0:00:24]}  Re3+ {[%clk 0:00:24]} 43. Kf2 {[%clk 0:00:19]}  Re2+ {[%clk 0:00:25]} 44. Qxe2 {[%clk 0:00:20]}  Nxe2 {[%clk 0:00:26]} 45. Kxe2 {[%clk 0:00:20]}  Kf6 {[%clk 0:00:25]} 46. Ke3 {[%clk 0:00:20]}  Kf5 {[%clk 0:00:26]} 47. Kf3 {[%clk 0:00:20]}  b6 {[%clk 0:00:26]} 48. Ke3 {[%clk 0:00:19]}  Kg4 {[%clk 0:00:26]} 49. Ke4 {[%clk 0:00:18]}  Kxh4 {[%clk 0:00:27]} 50. Kf3 {[%clk 0:00:18]}  Kh3 {[%clk 0:00:27]} 51. Kf2 {[%clk 0:00:13]}  Kg4 {[%clk 0:00:26]} 52. Ke3 {[%clk 0:00:13]}  h4 {[%clk 0:00:26]} 53. Ke4 {[%clk 0:00:09]}  h3 {[%clk 0:00:26]} 54. Kd5 {[%clk 0:00:09]}  h2 {[%clk 0:00:27]} 55. Kc6 {[%clk 0:00:10]}  h1=Q+ {[%clk 0:00:28]} 56. Kxb6 {[%clk 0:00:11]}  Qg1 {[%clk 0:00:27]} 0-1


[Site "https://www.chess.com"]